fUST/lending_fUST_20251114
["ID","MTS","AMOUNT","RATE_DAILY","PERIOD"]
[393932706,1763105432644,-166.58073938,0.00026103,2]
[393932707,1763105432653,-231.083211,0.00026676,2]
[393932708,1763105432663,-298.13875687,0.00027269,2]
[393932709,1763105432674,-901.86124313,0.00027269,2]
[393932711,1763105432684,-4532.00776541,0.0002727,2]
[393932713,1763105432693,-177.0,0.00027654,2]
[393932714,1763105432702,-1200.0,0.00029602,2]
[393932715,1763105432711,-204.0,0.00029654,2]
[393932716,1763105432720,-300.0,0.00029999,2]
[393932717,1763105432729,-300.0,0.00029999,2]
[393932718,1763105432740,-300.0,0.00029999,2]
[393932719,1763105432750,-15048.17205269,0.0003,30]
[393932720,1763105432759,-231.0,0.00031654,2]
[393932721,1763105432768,-186.36462291,0.00032899,2]
[393932722,1763105432777,-510.7157038,0.00032973,5]
[393932723,1763105432786,-526.2,0.00032989,10]
[393932724,1763105432795,-262.82249467,0.00032998,7]
[393932725,1763105432804,-212.61393011,0.00032998,7]
[393932726,1763105432813,-288.42333085,0.00032998,7]
[393932727,1763105432822,-26282.23011237,0.00032999,2]
[393932728,1763105432902,200.0,0.00039693,20]
[393932732,1763105438360,-998.80874545,0.0003299,10]
[393932733,1763105438372,-4.61125455,0.0003299,10]
[393932734,1763105438383,-501.93939907,0.00032998,7]
[393932735,1763105438394,-500.0,0.00032998,7]
[393932736,1763105438406,-322.12482691,0.00032998,7]
[393932737,1763105438417,-500.0,0.00032998,7]
[393932738,1763105438428,-582.91335921,0.00032998,7]
[393932739,1763105438439,-500.0,0.00032998,7]
[393932740,1763105438450,-500.0,0.00032998,7]
[393932741,1763105438461,-501.93939907,0.00032998,7]
[393932742,1763105438473,-500.0,0.00032998,7]
[393932743,1763105438484,-500.0,0.00032998,7]
[393932744,1763105438499,-500.0,0.00032998,7]
[393932745,1763105438511,-501.93939907,0.00032998,7]
[393932746,1763105438522,-336.57321591,0.00032998,7]
[393932747,1763105438533,-500.0,0.00032998,7]
[393932748,1763105438548,-281.30646389,0.00032998,7]
[393932749,1763105438559,-500.0,0.00032998,7]
[393932750,1763105438569,-500.0,0.00032998,7]
[393932751,1763105438579,-500.0,0.00032998,7]
[393932752,1763105438590,-500.0,0.00032998,7]
[393932753,1763105438600,-501.93939907,0.00032998,7]
[393932754,1763105438611,-501.93939907,0.00032998,7]
[393932755,1763105438625,-500.0,0.00032998,7]
[393932756,1763105438636,-500.0,0.00032998,7]
[393932757,1763105438648,-500.0,0.00032998,7]
[393932758,1763105438658,-501.93939907,0.00032998,7]
[393932759,1763105438669,-500.0,0.00032998,7]
[393932760,1763105438679,-500.0,0.00032998,7]
[393932761,1763105438690,-501.93939907,0.00032998,7]
[393932762,1763105438700,-500.0,0.00032998,7]
[393932763,1763105438711,-500.0,0.00032998,7]
[393932764,1763105438722,-501.93939907,0.00032998,7]
[393932765,1763105438732,-500.0,0.00032998,7]
[393932766,1763105438744,-501.93939907,0.00032998,7]
[393932767,1763105438755,-500.0,0.00032998,7]
[393932768,1763105438766,-500.0,0.00032998,7]
[393932769,1763105438777,-157.67183965,0.00032998,7]
[393932770,1763105438789,-501.93939907,0.00032998,7]
[393932771,1763105438800,-445.22722778,0.00032998,7]
[393932772,1763105438810,-500.0,0.00032998,7]
[393932773,1763105438821,-501.93939907,0.00032998,7]
[393932774,1763105438831,-501.93939907,0.00032998,7]
[393932775,1763105438841,-500.0,0.00032998,7]
[393932776,1763105438851,-500.0,0.00032998,7]
[393932777,1763105438864,-500.0,0.00032998,7]
[393932778,1763105438876,-501.93939907,0.00032998,7]
[393932779,1763105438886,-500.0,0.00032998,7]
[393932780,1763105438897,-479.88061498,0.00032998,7]
[393932781,1763105438907,-501.93939907,0.00032998,7]
[393932782,1763105438917,-500.0,0.00032998,7]
[393932783,1763105438928,-501.93939907,0.00032998,7]
[393932784,1763105438938,-500.0,0.00032998,7]
[393932785,1763105438949,-501.93939907,0.00032998,7]
[393932786,1763105438961,-500.0,0.00032998,7]
[393932787,1763105438971,-501.93939907,0.00032998,7]
[393932788,1763105438982,-500.0,0.00032998,7]
[393932789,1763105438995,-500.0,0.00032998,7]
[393932790,1763105439005,-501.93939907,0.00032998,7]
[393932791,1763105439016,-501.93939907,0.00032998,7]
[393932792,1763105439027,-500.0,0.00032998,7]
[393932793,1763105439039,-500.0,0.00032998,7]
[393932794,1763105439051,-500.0,0.00032998,7]
[393932795,1763105439062,-500.0,0.00032998,7]
[393932796,1763105439073,-500.0,0.00032998,7]
[393932797,1763105439084,-501.93939907,0.00032998,7]
[393932798,1763105439095,-500.0,0.00032998,7]
[393932799,1763105439105,-501.93939907,0.00032998,7]
[393932800,1763105439116,-501.93939907,0.00032998,7]
[393932801,1763105439126,-501.93939907,0.00032998,7]
[393932802,1763105439137,-501.93939907,0.00032998,7]
[393932803,1763105439147,-270.48848652,0.00032998,7]
[393932804,1763105439158,-501.93939907,0.00032998,7]
[393932805,1763105439170,-500.0,0.00032998,7]
[393932806,1763105439184,-501.93939907,0.00032998,7]
[393932807,1763105439198,-501.93939907,0.00032998,7]
[393932808,1763105439209,-500.0,0.00032998,7]
[393932809,1763105439223,-501.93939907,0.00032998,7]
[393932810,1763105439235,-501.93939907,0.00032998,7]
[393932811,1763105439248,-500.0,0.00032998,7]
[393932812,1763105439258,-501.93939907,0.00032998,7]
[393932813,1763105439268,-500.0,0.00032998,7]
[393932814,1763105439278,-501.93939907,0.00032998,7]
[393932815,1763105439288,-500.0,0.00032998,7]
[393932816,1763105439299,-501.93939907,0.00032998,7]
[393932817,1763105439309,-501.93939907,0.00032998,7]
[393932818,1763105439321,-500.0,0.00032998,7]
[393932819,1763105439333,-501.93939907,0.00032998,7]
[393932820,1763105439344,-500.0,0.00032998,7]
[393932821,1763105439355,-501.93939907,0.00032998,7]
[393932822,1763105439366,-500.0,0.00032998,7]
[393932823,1763105439376,-501.93939907,0.00032998,7]
[393932824,1763105439387,-501.93939907,0.00032998,7]
[393932825,1763105439397,-500.0,0.00032998,7]
[393932826,1763105439407,-501.93939907,0.00032998,7]
[393932827,1763105439417,-500.0,0.00032998,7]
[393932828,1763105439427,-501.93939907,0.00032998,7]
[393932829,1763105439438,-500.0,0.00032998,7]
[393932830,1763105439448,-501.93939907,0.00032998,7]
[393932831,1763105439459,-500.0,0.00032998,7]
[393932832,1763105439470,-501.93939907,0.00032998,7]
[393932833,1763105439480,-500.0,0.00032998,7]
[393932834,1763105439492,-501.93939907,0.00032998,7]
[393932835,1763105439503,-501.93939907,0.00032998,7]
[393932836,1763105439513,-500.0,0.00032998,7]
[393932837,1763105439525,-501.93939907,0.00032998,7]
[393932838,1763105439536,-500.0,0.00032998,7]
[393932839,1763105439551,-501.93939907,0.00032998,7]
[393932840,1763105439561,-501.93939907,0.00032998,7]
[393932841,1763105439571,-500.0,0.00032998,7]
[393932842,1763105439581,-501.93939907,0.00032998,7]
[393932843,1763105439594,-500.0,0.00032998,7]
[393932844,1763105439605,-500.0,0.00032998,7]
[393932845,1763105439626,-501.93939907,0.00032998,7]
[393932846,1763105439766,-501.93939907,0.00032998,7]
[393932847,1763105439778,-500.0,0.00032998,7]
[393932848,1763105439788,-501.93939907,0.00032998,7]
[393932849,1763105439797,-501.93939907,0.00032998,7]
[393932850,1763105439806,-500.0,0.00032998,7]
[393932851,1763105439815,-501.93939907,0.00032998,7]
[393932852,1763105439824,-500.0,0.00032998,7]
[393932853,1763105439833,-501.93939907,0.00032998,7]
[393932854,1763105439843,-500.0,0.00032998,7]
[393932855,1763105439852,-501.93939907,0.00032998,7]
[393932856,1763105439861,-500.0,0.00032998,7]
[393932857,1763105439871,-501.93939907,0.00032998,7]
[393932858,1763105439879,-501.93939907,0.00032998,7]
[393932859,1763105439888,-501.93939907,0.00032998,7]
[393932860,1763105439897,-501.93939907,0.00032998,7]
[393932861,1763105439906,-500.0,0.00032998,7]
[393932862,1763105439916,-501.93939907,0.00032998,7]
[393932863,1763105439925,-500.0,0.00032998,7]
[393932864,1763105439935,-501.93939907,0.00032998,7]
[393932865,1763105439944,-501.93939907,0.00032998,7]
[393932866,1763105439954,-500.0,0.00032998,7]
[393932867,1763105439963,-501.93939907,0.00032998,7]
[393932868,1763105439973,-501.93939907,0.00032998,7]
[393932869,1763105439982,-2315.39824297,0.00032999,2]
[393932870,1763105439993,-52541.37004558,0.00033,10]
[393932871,1763105440003,-165.96,0.00033,7]
[393932872,1763105440012,-231.083211,0.00033165,2]
[393932873,1763105440021,-180.07081658,0.00033236,117]
[393932874,1763105440031,-463.008711,0.00033336,2]
[393932875,1763105440040,-258.0,0.00033654,120]
[393932876,1763105440049,-407.48166272,0.00033696,6]
[393932877,1763105440058,-188.64466613,0.000344,2]
[393932878,1763105440067,-500.0,0.00034473,5]
[393932879,1763105440077,-40964.65012385,0.000345,30]
[393932880,1763105440086,-5391.64,0.000345,14]
[393932881,1763105440095,-9042.37672189,0.00035,2]
[393932882,1763105440104,-1015.84476907,0.00035021,5]
[393932883,1763105440113,-160.0,0.00035406,2]
[393932884,1763105440123,-283.47303014,0.0003547,6]
[393932885,1763105440132,-987.0,0.00035486,2]
[393932888,1763105440141,-629.0,0.00035486,2]
[393932890,1763105440150,-2161.0,0.00035486,2]
[393932892,1763105440159,-413.0,0.00035486,2]
[393932894,1763105440168,-285.0,0.00035654,120]
[393932896,1763105440177,-1000.0,0.00037,120]
[393932897,1763105440186,-186.157,0.0003731,48]
[393932900,1763105440195,-150.0,0.00037373,5]
[393932902,1763105440204,-368.01544682,0.00037373,5]
[393932905,1763105440217,-19262.1974889,0.00037391,3]
[393932907,1763105440226,-151.0,0.000374,19]
[393932909,1763105440235,-151.0,0.000374,18]
[393932910,1763105440246,-151.0,0.000374,10]
[393932911,1763105440255,-205374.44306622,0.00037413,3]
[393932912,1763105440575,-3e-08,0.00037413,3]
[393932913,1763105440587,-3028.28782648,0.00037413,3]
[393932914,1763105440598,-1733.61004941,0.00037413,3]
[393932915,1763105440696,-1747.83143586,0.00037413,3]
[393932916,1763105440705,-151.0,0.00037423,31]
[393932917,1763105440714,-154.490236,0.00037423,31]
[393932918,1763105440725,-97617.90069127,0.00037423,2]
[393932950,1763105446032,-5625.1242614,0.00037423,2]
[393932951,1763105446043,-6306.10000004,0.00037423,2]
[393932952,1763105446054,-10018.34124936,0.00037423,2]
[393932960,1763105446619,-998.43877486,0.00037423,2]
[393933105,1763105784375,-150.0,0.00025497,2]
[393933131,1763106058276,229.17062359,0.00039687,20]
[393933133,1763106065844,186.46372179,0.00039687,20]
[393933136,1763106098705,1399.09978616,0.00039711,20]
[393933163,1763106110322,432.56287996,0.00039711,20]
[393933193,1763106341656,636.12525468,0.00039711,20]
[393933215,1763106484121,150.2,0.00025,2]
[393933235,1763106565408,-320.526691,0.00025251,2]
[393933236,1763106565433,-150.0,0.00025351,2]
[393933281,1763106633045,-363.72634558,0.00026103,2]
[393933283,1763106633054,-282.03107962,0.00026103,2]
[393933285,1763106633063,-177.0,0.00027351,2]
[393933286,1763106633072,-150.0,0.00027908,2]
[393933288,1763106633082,-200.0,0.00028786,15]
[393933290,1763106633090,-765.723541,0.00029102,30]
[393933292,1763106633099,-150.0,0.00029237,2]
[393933294,1763106633108,-204.0,0.00029351,2]
[393933296,1763106633117,-1200.0,0.00030565,2]
[393933298,1763106633126,-150.0,0.00030566,2]
[393933300,1763106633135,-1321.93452545,0.00030566,2]
[393933302,1763106633144,-231.0,0.00031351,2]
[393933304,1763106633153,-220.0,0.00031799,3]
[393933306,1763106633163,-400.0,0.00031799,2]
[393933308,1763106633172,-363.72634558,0.000318,2]
[393933310,1763106633181,-282.03107962,0.000318,2]
[393933312,1763106633191,-150.0,0.00031895,2]
[393933314,1763106633200,-151.0,0.00031967,2]
[393933316,1763106633209,-151.0,0.00031967,2]
[393933318,1763106633218,-151.0,0.00031967,2]
[393933320,1763106633227,-151.0,0.00031967,2]
[393933322,1763106633237,-151.0,0.00031967,2]
[393933324,1763106633249,-151.0,0.00031967,2]
[393933326,1763106633258,-151.0,0.00031967,2]
[393933328,1763106633268,-151.0,0.00031967,2]
[393933330,1763106633277,-151.0,0.00031967,2]
[393933332,1763106633286,-269.1615613,0.00031967,2]
[393933334,1763106633296,-504.7921496,0.00031973,5]
[393933336,1763106633316,-500.0,0.00031973,2]
[393933338,1763106633331,-500.0,0.00031973,5]
[393933340,1763106633342,-836.18,0.00031974,10]
[393933342,1763106633351,-696.82,0.00031974,10]
[393933344,1763106633360,-7704.87899557,0.00031975,2]
[393933346,1763106633369,-201.89633159,0.00031983,2]
[393933348,1763106633379,-183.97574626,0.00031983,2]
[393933350,1763106633388,-503.67247936,0.00031989,20]
[393933352,1763106633398,-500.0,0.00031989,2]
[393933354,1763106633407,-300.0,0.00032434,30]
[393933356,1763106633417,-300.0,0.00032434,30]
[393933358,1763106633426,-1000.0,0.00032521,2]
[393933360,1763106633436,-1066.79610238,0.00032521,5]
[393933362,1763106633445,-197.676,0.00032563,32]
[393933364,1763106633455,-1046.16014344,0.00032723,2]
[393933366,1763106633464,-267.0,0.00032768,2]
[393933368,1763106633473,-412.58864168,0.00032789,2]
[393933370,1763106633483,-412.58864165,0.00032792,2]
[393933372,1763106633491,-412.58864165,0.00032794,2]
[393933374,1763106633505,-412.58864165,0.00032797,2]
[393933376,1763106633516,-412.58864165,0.00032799,2]
[393933378,1763106633526,-500.0,0.00032873,5]
[393933380,1763106633535,-500.0,0.00032873,5]
[393933382,1763106633544,-506.25578774,0.00032873,5]
[393933384,1763106633553,-500.0,0.00032873,5]
[393933386,1763106633562,-505.45125043,0.00032873,4]
[393933388,1763106633571,-500.0,0.00032873,5]
[393933390,1763106633579,-500.0,0.00032873,5]
[393933391,1763106633589,-500.0,0.00032873,5]
[393933393,1763106633598,-500.0,0.00032873,5]
[393933395,1763106633607,-500.0,0.00032873,5]
[393933397,1763106633616,-401.2314859,0.00032873,5]
[393933399,1763106633626,-500.0,0.00032873,5]
[393933401,1763106633635,-7704.87899557,0.00032879,2]
[393933403,1763106633644,-75558.324871,0.00032889,2]
[393933406,1763106633656,-479.73790248,0.00032889,2]
[393933409,1763106633675,-841.6034007,0.00032889,2]
[393933411,1763106633685,-1410.72508389,0.00032889,2]
[393933451,1763106639066,-150.0,0.00027872,2]
[393933453,1763106639076,-150.0,0.00029199,2]
[393933455,1763106639086,-150.0,0.00030526,2]
[393933457,1763106639096,-150.0,0.00031854,2]
[393933460,1763106639106,-197.13125455,0.00031983,2]
[393933463,1763106639117,-192.86353549,0.00031983,2]
[393933465,1763106639126,-500.0,0.00031983,2]
[393933467,1763106639135,-500.0,0.00031983,2]
[393933469,1763106639144,-500.0,0.00031983,2]
[393933471,1763106639153,-500.0,0.00031983,2]
[393933473,1763106639163,-500.0,0.00031983,2]
[393933475,1763106639172,-500.0,0.00031983,2]
[393933477,1763106639181,-500.0,0.00031983,2]
[393933479,1763106639190,-500.0,0.00031983,2]
[393933481,1763106639200,-494.62575363,0.00031983,2]
[393933483,1763106639209,-536.2913546,0.00031983,2]
[393933486,1763106639228,-500.0,0.00031983,2]
[393933488,1763106639239,-337.01581518,0.00031983,2]
[393933491,1763106639250,-500.0,0.00031983,2]
[393933493,1763106639259,-500.0,0.00031983,2]
[393933494,1763106639269,-500.0,0.00031983,2]
[393933496,1763106639278,-500.0,0.00031983,2]
[393933498,1763106639287,-500.0,0.00031983,2]
[393933500,1763106639296,-500.0,0.00031983,2]
[393933502,1763106639306,-500.0,0.00031983,2]
[393933504,1763106639315,-492.17121729,0.00031983,2]
[393933507,1763106639328,-7.82878271,0.00031983,2]
[393933509,1763106639337,-384.47432963,0.00031983,2]
[393933511,1763106639346,-500.0,0.00031983,2]
[393933513,1763106639356,-135.63500679,0.00031983,2]
[393933515,1763106639366,-294.54076015,0.00031983,2]
[393933619,1763106640876,-69.82423306,0.00031983,2]
[393933621,1763106640886,-500.0,0.00031983,2]
[393933623,1763106640896,-500.0,0.00031983,2]
[393933625,1763106640906,-500.0,0.00031983,2]
[393933627,1763106640916,-500.0,0.00031983,2]
[393933629,1763106640930,-500.0,0.00031983,2]
[393933631,1763106640939,-500.0,0.00031983,2]
[393933633,1763106640949,-500.0,0.00031983,2]
[393933634,1763106640959,-500.0,0.00031983,2]
[393933635,1763106640970,-500.0,0.00031983,2]
[393933636,1763106640979,-500.0,0.00031983,2]
[393933638,1763106640989,-500.0,0.00031983,2]
[393933640,1763106641000,-500.0,0.00031983,2]
[393933641,1763106641010,-500.0,0.00031983,2]
[393933642,1763106641019,-500.0,0.00031983,2]
[393933643,1763106641029,-500.0,0.00031983,2]
[393933657,1763106641158,-500.0,0.00031983,2]
[393933660,1763106641168,-500.0,0.00031983,2]
[393933661,1763106641177,-500.0,0.00031983,2]
[393933663,1763106641187,-500.0,0.00031983,2]
[393933665,1763106641196,-500.0,0.00031983,2]
[393933667,1763106641205,-500.0,0.00031983,2]
[393933669,1763106641214,-500.0,0.00031983,2]
[393933671,1763106641223,-500.0,0.00031983,2]
[393933673,1763106641232,-500.0,0.00031983,2]
[393933675,1763106641241,-500.0,0.00031983,2]
[393933677,1763106641251,-198.63227443,0.00031983,2]
[393933679,1763106641260,-500.0,0.00031983,2]
[393933681,1763106641269,-500.0,0.00031983,2]
[393933683,1763106641278,-500.0,0.00031983,2]
[393933685,1763106641287,-500.0,0.00031983,2]
[393933687,1763106641296,-500.0,0.00031983,2]
[393933689,1763106641305,-500.0,0.00031983,2]
[393933691,1763106641315,-500.0,0.00031983,2]
[393933694,1763106641323,-500.0,0.00031983,2]
[393933696,1763106641333,-500.0,0.00031983,2]
[393933698,1763106641342,-500.0,0.00031983,2]
[393933700,1763106641351,-500.0,0.00031983,2]
[393933702,1763106641360,-500.0,0.00031983,2]
[393933704,1763106641369,-500.0,0.00031983,2]
[393933706,1763106641378,-500.0,0.00031983,2]
[393933708,1763106641387,-500.0,0.00031983,2]
[393933710,1763106641396,-500.0,0.00031983,2]
[393933712,1763106641405,-500.0,0.00031983,2]
[393933714,1763106641414,-500.0,0.00031983,2]
[393933716,1763106641423,-500.0,0.00031983,2]
[393933718,1763106641432,-500.0,0.00031983,2]
[393933720,1763106641441,-500.0,0.00031983,2]
[393933722,1763106641450,-500.0,0.00031983,2]
[393933724,1763106641459,-500.0,0.00031983,2]
[393933726,1763106641468,-313.30349248,0.00031983,2]
[393933924,1763106643903,-186.69650752,0.00031983,2]
[393933926,1763106643912,-500.0,0.00031983,2]
[393933927,1763106643923,-500.0,0.00031983,2]
[393933928,1763106643941,-200.0,0.00031983,2]
[393933929,1763106643957,-500.0,0.00031983,2]
[393933930,1763106643966,-500.0,0.00031983,2]
[393933931,1763106643976,-500.0,0.00031983,2]
[393933932,1763106643985,-500.0,0.00031983,2]
[393933933,1763106643995,-500.0,0.00031983,2]
[393933934,1763106644006,-500.0,0.00031983,2]
[393933935,1763106644015,-500.0,0.00031983,2]
[393933936,1763106644025,-500.0,0.00031983,2]
[393933937,1763106644034,-65.68686111,0.00031983,2]
[393933938,1763106644046,-434.31313889,0.00031983,2]
[393933939,1763106644059,-500.0,0.00031983,2]
[393933940,1763106644069,-500.0,0.00031983,2]
[393933941,1763106644078,-500.0,0.00031983,2]
[393933942,1763106644087,-500.0,0.00031983,2]
[393933943,1763106644096,-500.0,0.00031983,2]
[393933944,1763106644105,-500.0,0.00031983,2]
[393933945,1763106644114,-500.0,0.00031983,2]
[393933946,1763106644124,-500.0,0.00031983,2]
[393933947,1763106644133,-500.0,0.00031983,2]
[393933948,1763106644143,-500.0,0.00031983,2]
[393933949,1763106644152,-488.27084716,0.00031983,2]
[393933950,1763106644162,-500.0,0.00031983,2]
[393933951,1763106644173,-500.0,0.00031983,2]
[393933952,1763106644182,-500.0,0.00031983,2]
[393933953,1763106644192,-44987.67267093,0.00032889,2]
[393933954,1763106644201,-580.68,0.00032889,10]
[393933955,1763106644211,-8624.91358655,0.00032899,2]
[393933959,1763106646947,-4513.95033797,0.00032899,2]
[393933960,1763106646959,-165433.59599811,0.00032899,2]
[393933961,1763106646974,-432.26777134,0.00032899,2]
[393933962,1763106647140,-422.748628,0.00032899,2]
[393933964,1763106647249,-3129.4,0.00032899,2]
[393933965,1763106647262,-23131.0229,0.00032899,2]
[393933966,1763106647272,-29172.82939666,0.00032899,2]
[393933967,1763106647283,-3128.2,0.00032899,2]
[393933968,1763106647293,-1497.25668317,0.00032899,2]
[393934096,1763106906538,40000.0,0.00039711,60]
[393934169,1763107329860,-505.85524517,0.000253,2]
[393934170,1763107329885,-150.0,0.0002543,2]
[393934236,1763107504991,322.02,0.00039768,20]
[393934246,1763107652040,483.04,0.00039768,30]
[393934248,1763107799070,300.0,0.00039772,60]
[393934331,1763107831861,-150.0,0.0002543,2]
[393934334,1763107831872,-819.02271888,0.00026103,2]
[393934337,1763107831882,-396.59546736,0.0002733,2]
[393934340,1763107831893,-177.0,0.0002743,2]
[393934343,1763107831903,-150.0,0.00027894,2]
[393934346,1763107831913,-317.269812,0.00028509,2]
[393934349,1763107831923,-184.269827,0.00028532,60]
[393934352,1763107831934,-2550.05938471,0.000289,2]
[393934356,1763107831944,-1200.0,0.00028979,2]
[393934358,1763107831955,-300.0,0.00028979,2]
[393934377,1763107831966,-626.2,0.0002898,10]
[393934381,1763107832113,-521.83,0.0002898,10]
[393934385,1763107832124,-300.0,0.00028989,2]
[393934389,1763107832135,-5797.61949977,0.0002899,2]
[393934391,1763107832147,-94202.38050023,0.0002899,2]
[393934393,1763107832156,-165.96,0.00029,7]
[393934395,1763107832165,-150.0,0.00029222,2]
[393934397,1763107832174,-404.49047267,0.00029262,2]
[393934399,1763107832183,-462.27482591,0.00029262,2]
[393934401,1763107832194,-198.50509316,0.00029342,2]
[393934403,1763107832203,-335.3641694,0.00029343,2]
[393934405,1763107832212,-5342.69073326,0.00029343,2]
[393934407,1763107832223,-29631.00686827,0.00029343,2]
[393934409,1763107832232,-501.89067696,0.00029373,5]
[393934411,1763107832243,-500.0,0.00029373,5]
[393934413,1763107832253,-504.32276064,0.00029373,5]
[393934415,1763107832262,-500.0,0.00029373,2]
[393934417,1763107832271,-500.0,0.00029373,5]
[393934419,1763107832281,-500.0,0.00029373,5]
[393934421,1763107832290,-506.45381358,0.00029373,5]
[393934423,1763107832299,-500.0,0.00029373,3]
[393934425,1763107832311,-209.59424987,0.00029373,5]
[393934427,1763107832320,-500.0,0.00029373,5]
[393934429,1763107832330,-500.0,0.00029373,5]
[393934431,1763107832339,-503.95228289,0.00029373,2]
[393934433,1763107832348,-204.0,0.0002943,2]
[393934436,1763107832359,-151.0,0.00029919,7]
[393934438,1763107832368,-500.0,0.00029919,2]
[393934440,1763107832377,-500.0,0.0002992,2]
[393934442,1763107832387,-500.0,0.0002992,2]
[393934444,1763107832396,-500.0,0.0002992,2]
[393934445,1763107832405,-500.0,0.0002992,2]
[393934447,1763107832414,-455.07099609,0.0002992,2]
[393934449,1763107832423,-500.0,0.0002992,2]
[393934452,1763107832433,-500.0,0.0002992,2]
[393934454,1763107832442,-503.09675837,0.0002992,2]
[393934456,1763107832452,-500.0,0.0002992,2]
[393934458,1763107832461,-500.0,0.0002992,2]
[393934460,1763107832470,-500.0,0.0002992,2]
[393934462,1763107832479,-500.0,0.0002992,2]
[393934464,1763107832488,-500.0,0.0002992,2]
[393934465,1763107832499,-500.0,0.0002992,2]
[393934467,1763107832508,-740.41367323,0.0002992,2]
[393934469,1763107832517,-500.0,0.0002992,2]
[393934471,1763107832526,-500.0,0.0002992,2]
[393934473,1763107832536,-500.0,0.0002992,2]
[393934475,1763107832545,-500.0,0.0002992,2]
[393934477,1763107832555,-587.44895948,0.0002992,2]
[393934480,1763107832563,-500.0,0.0002992,2]
[393934481,1763107832573,-500.0,0.0002992,2]
[393934483,1763107832582,-500.0,0.0002992,2]
[393934486,1763107832591,-500.0,0.0002992,2]
[393934488,1763107832600,-740.41367323,0.0002992,2]
[393934489,1763107832609,-500.0,0.0002992,2]
[393934491,1763107832618,-500.0,0.0002992,2]
[393934492,1763107832627,-500.0,0.0002992,2]
[393934494,1763107832636,-500.0,0.0002992,2]
[393934496,1763107832644,-500.0,0.0002992,2]
[393934498,1763107832653,-500.0,0.0002992,2]
[393934500,1763107832662,-500.0,0.0002992,2]
[393934502,1763107832671,-500.0,0.0002992,2]
[393934504,1763107832680,-552.13803136,0.0002992,2]
[393934506,1763107832689,-740.41367323,0.0002992,2]
[393934508,1763107832698,-518.93279115,0.0002992,2]
[393934510,1763107832707,-500.0,0.0002992,2]
[393934512,1763107832716,-500.0,0.0002992,2]
[393934514,1763107832726,-634.58198903,0.0002992,2]
[393934516,1763107832735,-500.0,0.0002992,2]
[393934518,1763107832746,-500.0,0.0002992,2]
[393934520,1763107832755,-500.0,0.0002992,2]
[393934522,1763107832764,-740.41367323,0.0002992,2]
[393934524,1763107832773,-500.0,0.0002992,2]
[393934526,1763107832783,-500.0,0.0002992,2]
[393934528,1763107832793,-500.0,0.0002992,2]
[393934530,1763107832802,-500.0,0.0002992,2]
[393934532,1763107832812,-500.0,0.0002992,2]
[393934534,1763107832821,-500.0,0.0002992,2]
[393934536,1763107832830,-500.0,0.0002992,2]
[393934538,1763107832839,-500.0,0.0002992,2]
[393934540,1763107832848,-740.41367323,0.0002992,2]
[393934542,1763107832857,-500.0,0.0002992,2]
[393934544,1763107832867,-500.0,0.0002992,2]
[393934546,1763107832876,-500.0,0.0002992,2]
[393934548,1763107832885,-500.0,0.0002992,2]
[393934550,1763107832895,-500.0,0.0002992,2]
[393934552,1763107832903,-740.41367323,0.0002992,2]
[393934554,1763107832912,-182.32412394,0.0002992,2]
[393934556,1763107832922,-201.2068924,0.0002992,2]